fUST/lending_fUST_20250608
["ID","MTS","AMOUNT","RATE_DAILY","PERIOD"]
[365013697,1749397853880,-1497.41,0.00020273,2]
[365013698,1749397853890,-440.0,0.00020273,2]
[365013699,1749397853900,-390.0,0.00020273,2]
[365013700,1749397853912,-440.0,0.00020273,2]
[365013701,1749397853922,-440.0,0.00020273,2]
[365013702,1749397853932,-440.0,0.00020273,2]
[365013703,1749397853941,-440.0,0.00020273,2]
[365013704,1749397853951,-2391.39,0.00020273,2]
[365013705,1749397853961,-1136.2,0.00020273,2]
[365013706,1749397853971,-440.0,0.00020273,2]
[365013707,1749397853984,-3847.83,0.00020273,2]
[365013708,1749397853994,-440.0,0.00020273,2]
[365013709,1749397854004,-440.0,0.00020273,2]
[365013710,1749397854014,-440.0,0.00020273,2]
[365013711,1749397854027,-500.12,0.00020273,2]
[365013712,1749397854036,-1497.71,0.00020273,2]
[365013713,1749397854047,-440.0,0.00020273,2]
[365013714,1749397854057,-2304.47,0.00020273,2]
[365013715,1749397854067,-440.0,0.00020273,2]
[365013716,1749397854076,-400.0,0.00020273,2]
[365013717,1749397854085,-440.0,0.00020273,2]
[365013718,1749397854094,-440.0,0.00020273,2]
[365013719,1749397854104,-440.0,0.00020273,2]
[365013720,1749397854114,-289.2384521,0.00020273,2]
[365013721,1749397854123,-953.88,0.00020273,2]
[365013722,1749397854133,-987.13,0.00020273,2]
[365013723,1749397854143,-665.3,0.00020273,2]
[365013724,1749397854152,-316.28674074,0.00020273,2]
[365013725,1749397854162,-440.0,0.00020273,2]
[365013726,1749397854171,-384.1548375,0.00020273,2]
[365013727,1749397854181,-440.0,0.00020273,2]
[365013728,1749397854191,-440.0,0.00020273,2]
[365013729,1749397854200,-1000.0,0.00020302,2]
[365013730,1749397854210,-438.63868862,0.0002036,2]
[365013731,1749397854220,-500.0,0.00020547,2]
[365013732,1749397854230,-380.0,0.00020547,2]
[365013733,1749397854240,-325.29681802,0.00020547,2]
[365013734,1749397854249,-440.0,0.00020547,2]
[365013735,1749397854259,-440.0,0.00020547,2]
[365013736,1749397854269,-440.0,0.00020547,2]
[365013737,1749397854278,-440.0,0.00020547,2]
[365013738,1749397854288,-440.0,0.00020547,2]
[365013739,1749397854297,-380.0,0.00020547,2]
[365013740,1749397854307,-440.0,0.00020547,2]
[365013741,1749397854316,-440.0,0.00020547,2]
[365013742,1749397854326,-440.0,0.00020547,2]
[365013743,1749397854336,-440.0,0.00020547,2]
[365013744,1749397854345,-440.0,0.00020547,2]
[365013745,1749397854356,-400.0,0.00020547,2]
[365013746,1749397854366,-440.0,0.00020547,2]
[365013747,1749397854376,-440.0,0.00020547,2]
[365013748,1749397854386,-440.0,0.00020547,2]
[365013749,1749397854395,-440.0,0.00020547,2]
[365013750,1749397854404,-380.0,0.00020547,2]
[365013751,1749397854414,-440.0,0.00020547,2]
[365013752,1749397854424,-440.0,0.00020547,2]
[365013753,1749397854434,-440.0,0.00020547,2]
[365013754,1749397854444,-440.0,0.00020547,2]
[365013755,1749397854454,-440.0,0.00020547,2]
[365013756,1749397854464,-440.0,0.00020547,2]
[365013757,1749397854474,-399.86829182,0.00020547,2]
[365013758,1749397854483,-1046.62,0.00020547,2]
[365013759,1749397854495,-418.82031128,0.00020547,2]
[365013760,1749397854505,-440.0,0.00020547,2]
[365013761,1749397854515,-673.94,0.00020547,2]
[365013762,1749397854524,-555.76,0.00020547,2]
[365013763,1749397854534,-440.0,0.00020547,2]
[365013764,1749397854543,-440.0,0.00020547,2]
[365013765,1749397854553,-440.0,0.00020547,2]
[365013766,1749397854563,-440.0,0.00020547,2]
[365013767,1749397854573,-440.0,0.00020547,2]
[365013768,1749397854583,-440.0,0.00020547,2]
[365013769,1749397854593,-440.0,0.00020547,2]
[365013770,1749397854602,-407.827277,0.00020547,2]
[365013771,1749397854612,-440.0,0.00020547,2]
[365013772,1749397854622,-440.0,0.00020547,2]
[365013773,1749397854632,-611.96,0.00020547,2]
[365013774,1749397854642,-554.03,0.00020547,2]
[365013775,1749397854653,-440.0,0.00020547,2]
[365013776,1749397854663,-2019.15,0.00020547,2]
[365013777,1749397854673,-440.0,0.00020547,2]
[365013778,1749397854684,-440.0,0.00020547,2]
[365013779,1749397854694,-440.0,0.00020547,2]
[365013780,1749397854704,-451.11,0.00020547,2]
[365013781,1749397854714,-440.0,0.00020547,2]
[365013782,1749397854724,-440.0,0.00020547,2]
[365013783,1749397854734,-440.0,0.00020547,2]
[365013784,1749397854863,-972.8,0.00020547,2]
[365013785,1749397854874,-440.0,0.00020547,2]
[365013786,1749397854885,-440.0,0.00020547,2]
[365013787,1749397854895,-440.0,0.00020547,2]
[365013788,1749397854905,-1383.94,0.00020547,2]
[365013789,1749397854914,-440.0,0.00020547,2]
[365013790,1749397854924,-440.0,0.00020547,2]
[365013791,1749397854934,-440.0,0.00020547,2]
[365013792,1749397854944,-440.0,0.00020547,2]
[365013793,1749397854954,-440.0,0.00020547,2]
[365013794,1749397854964,-440.0,0.00020547,2]
[365013795,1749397854976,-440.0,0.00020547,2]
[365013796,1749397854996,-318.80190651,0.00020547,2]
[365013797,1749397855011,-440.0,0.00020547,2]
[365013798,1749397855021,-4351.89,0.00020547,2]
[365013799,1749397855030,-440.0,0.00020547,2]
[365013800,1749397855041,-1826.21,0.00020547,2]
[365013801,1749397855052,-1816.92,0.00020547,2]
[365013802,1749397855062,-1497.41,0.00020547,2]
[365013803,1749397855073,-446.24709914,0.00020547,2]
[365013804,1749397855083,-440.0,0.00020547,2]
[365013805,1749397855093,-206.82,0.00020547,2]
[365013806,1749397855105,-440.0,0.00020547,2]
[365013807,1749397855116,-440.0,0.00020547,2]
[365013808,1749397855126,-2391.39,0.00020547,2]
[365013809,1749397855137,-1136.2,0.00020547,2]
[365013810,1749397855148,-440.0,0.00020547,2]
[365013811,1749397855158,-3847.83,0.00020547,2]
[365013812,1749397855168,-440.0,0.00020547,2]
[365013813,1749397855178,-440.0,0.00020547,2]
[365013814,1749397855188,-440.0,0.00020547,2]
[365013815,1749397855197,-500.12,0.00020547,2]
[365013816,1749397855208,-1497.71,0.00020547,2]
[365013817,1749397855219,-440.0,0.00020547,2]
[365013818,1749397855229,-2304.47,0.00020547,2]
[365013819,1749397855239,-440.0,0.00020547,2]
[365013820,1749397855249,-440.0,0.00020547,2]
[365013821,1749397855258,-440.0,0.00020547,2]
[365013822,1749397855268,-440.0,0.00020547,2]
[365013823,1749397855278,-953.88,0.00020547,2]
[365013824,1749397855289,-987.13,0.00020547,2]
[365013825,1749397855300,-665.3,0.00020547,2]
[365013826,1749397855311,-440.0,0.00020547,2]
[365013827,1749397855321,-440.0,0.00020547,2]
[365013828,1749397855331,-440.0,0.00020547,2]
[365013829,1749397855341,-870.98,0.000206,2]
[365013830,1749397855351,-1797.27,0.000206,2]
[365013831,1749397855361,-29873.51,0.000206,2]
[365013832,1749397855372,-5000.0,0.00020603,2]
[365013833,1749397855382,-487.83526815,0.00020816,2]
[365013834,1749397855392,-1000.0,0.00020821,2]
[365013835,1749397855404,-440.0,0.00020821,2]
[365013836,1749397855414,-373.68576195,0.00020821,2]
[365013837,1749397855425,-440.0,0.00020821,2]
[365013838,1749397855435,-440.0,0.00020821,2]
[365013839,1749397855445,-370.0,0.00020821,2]
[365013840,1749397855455,-440.0,0.00020821,2]
[365013841,1749397855466,-440.0,0.00020821,2]
[365013842,1749397855476,-380.0,0.00020821,2]
[365013843,1749397855486,-440.0,0.00020821,2]
[365013844,1749397855496,-440.0,0.00020821,2]
[365013845,1749397855507,-464.55,0.00020821,2]
[365013846,1749397855519,-370.0,0.00020821,2]
[365013847,1749397855528,-440.0,0.00020821,2]
[365013848,1749397855538,-440.0,0.00020821,2]
[365013849,1749397855549,-440.0,0.00020821,2]
[365013850,1749397855560,-440.0,0.00020821,2]
[365013851,1749397855569,-440.0,0.00020821,2]
[365013852,1749397855579,-440.0,0.00020821,2]
[365013853,1749397855588,-440.0,0.00020821,2]
[365013854,1749397855598,-440.0,0.00020821,2]
[365013855,1749397855609,-1046.62,0.00020821,2]
[365013856,1749397855619,-440.0,0.00020821,2]
[365013857,1749397855629,-673.94,0.00020821,2]
[365013858,1749397855638,-440.0,0.00020821,2]
[365013859,1749397855648,-440.0,0.00020821,2]
[365013860,1749397855659,-440.0,0.00020821,2]
[365013861,1749397855669,-440.0,0.00020821,2]
[365013862,1749397855679,-440.0,0.00020821,2]
[365013863,1749397855688,-440.0,0.00020821,2]
[365013864,1749397855698,-423.72288419,0.00020821,2]
[365013865,1749397855708,-440.0,0.00020821,2]
[365013866,1749397855718,-440.0,0.00020821,2]
[365013867,1749397855728,-611.96,0.00020821,2]
[365013868,1749397855737,-554.03,0.00020821,2]
[365013869,1749397855747,-392.62903522,0.00020821,2]
[365013870,1749397855757,-2019.15,0.00020821,2]
[365013871,1749397855768,-440.0,0.00020821,2]
[365013872,1749397855778,-440.0,0.00020821,2]
[365013873,1749397855788,-440.0,0.00020821,2]
[365013874,1749397855798,-451.11,0.00020821,2]
[365013875,1749397855808,-386.64305447,0.00020821,2]
[365013876,1749397855817,-370.0,0.00020821,2]
[365013877,1749397855827,-440.0,0.00020821,2]
[365013878,1749397855837,-972.8,0.00020821,2]
[365013879,1749397855849,-440.0,0.00020821,2]
[365013880,1749397855859,-440.0,0.00020821,2]
[365013881,1749397855869,-440.0,0.00020821,2]
[365013882,1749397855879,-1383.94,0.00020821,2]
[365013883,1749397855889,-440.0,0.00020821,2]
[365013884,1749397855899,-440.0,0.00020821,2]
[365013885,1749397855909,-440.0,0.00020821,2]
[365013886,1749397855919,-454.8189457,0.00020821,2]
[365013887,1749397855928,-440.0,0.00020821,2]
[365013888,1749397855938,-440.0,0.00020821,2]
[365013889,1749397855948,-440.0,0.00020821,2]
[365013890,1749397855958,-440.0,0.00020821,2]
[365013891,1749397855967,-4351.89,0.00020821,2]
[365013892,1749397855979,-360.83897167,0.00020821,2]
[365013893,1749397855988,-1826.21,0.00020821,2]
[365013894,1749397855998,-1816.92,0.00020821,2]
[365013895,1749397856008,-1497.41,0.00020821,2]
[365013896,1749397856020,-440.0,0.00020821,2]
[365013897,1749397856032,-440.0,0.00020821,2]
[365013898,1749397856042,-440.0,0.00020821,2]
[365013899,1749397856053,-2391.39,0.00020821,2]
[365013900,1749397856063,-1136.2,0.00020821,2]
[365013901,1749397856073,-440.0,0.00020821,2]
[365013902,1749397856082,-3847.83,0.00020821,2]
[365013903,1749397856092,-440.0,0.00020821,2]
[365013904,1749397856102,-440.0,0.00020821,2]
[365013905,1749397856113,-532.52361612,0.00020821,2]
[365013906,1749397856123,-500.12,0.00020821,2]
[365013907,1749397856132,-1497.71,0.00020821,2]
[365013908,1749397856143,-440.0,0.00020821,2]
[365013909,1749397856154,-2304.47,0.00020821,2]
[365013910,1749397856164,-370.0,0.00020821,2]
[365013911,1749397856174,-440.0,0.00020821,2]
[365013912,1749397856183,-440.0,0.00020821,2]
[365013913,1749397856193,-280.0,0.00020821,2]
[365013914,1749397856203,-953.88,0.00020821,2]
[365013915,1749397856213,-987.13,0.00020821,2]
[365013916,1749397856223,-665.3,0.00020821,2]
[365013917,1749397856233,-440.0,0.00020821,2]
[365013918,1749397856243,-440.0,0.00020821,2]
[365013919,1749397856255,-440.0,0.00020821,2]
[365013920,1749397856266,-1500.0,0.0002085,2]
[365013921,1749397856275,-420.0,0.00020866,2]
[365013922,1749397856285,-420.0,0.00020866,2]
[365013923,1749397856297,-420.0,0.00020866,2]
[365013924,1749397856308,-420.0,0.00020866,2]
[365013925,1749397856319,-1680.0,0.00020966,2]
[365013926,1749397856329,-440.0,0.00021095,2]
[365013927,1749397856339,-440.0,0.00021095,2]
[365013928,1749397856349,-440.0,0.00021095,2]
[365013929,1749397856360,-440.0,0.00021095,2]
[365013930,1749397856370,-440.0,0.00021095,2]
[365013931,1749397856381,-440.0,0.00021095,2]
[365013932,1749397856390,-264.28957184,0.00021095,2]
[365013933,1749397856400,-440.0,0.00021095,2]
[365013934,1749397856410,-360.0,0.00021095,2]
[365013935,1749397856420,-440.0,0.00021095,2]
[365013936,1749397856430,-279.58,0.00021095,2]
[365013937,1749397856439,-440.0,0.00021095,2]
[365013938,1749397856449,-440.0,0.00021095,2]
[365013939,1749397856460,-440.0,0.00021095,2]
[365013940,1749397856470,-440.0,0.00021095,2]
[365013941,1749397856480,-1046.62,0.00021095,2]
[365013942,1749397856490,-440.0,0.00021095,2]
[365013943,1749397856501,-673.94,0.00021095,2]
[365013944,1749397856512,-440.0,0.00021095,2]
[365013945,1749397856522,-440.0,0.00021095,2]
[365013946,1749397856532,-440.0,0.00021095,2]
[365013947,1749397856542,-440.0,0.00021095,2]
[365013948,1749397856553,-440.0,0.00021095,2]
[365013949,1749397856564,-440.0,0.00021095,2]
[365013950,1749397856573,-440.0,0.00021095,2]
[365013951,1749397856583,-440.0,0.00021095,2]
[365013952,1749397856594,-611.96,0.00021095,2]
[365013953,1749397856604,-554.03,0.00021095,2]
[365013954,1749397856614,-2019.15,0.00021095,2]
[365013955,1749397856623,-440.0,0.00021095,2]
[365013956,1749397856634,-440.0,0.00021095,2]
[365013957,1749397856644,-440.0,0.00021095,2]
[365013958,1749397856654,-451.11,0.00021095,2]
[365013959,1749397856667,-440.0,0.00021095,2]
[365013960,1749397856677,-972.8,0.00021095,2]
[365013961,1749397856687,-440.0,0.00021095,2]
[365013962,1749397856697,-440.0,0.00021095,2]
[365013963,1749397856707,-440.0,0.00021095,2]
[365013964,1749397856716,-1383.94,0.00021095,2]
[365013965,1749397856726,-558.88568768,0.00021095,2]
[365013966,1749397856736,-440.0,0.00021095,2]
[365013967,1749397856746,-440.0,0.00021095,2]
[365013968,1749397856756,-440.0,0.00021095,2]
[365013969,1749397856766,-440.0,0.00021095,2]
[365013970,1749397856776,-440.0,0.00021095,2]
[365013971,1749397856786,-440.0,0.00021095,2]
[365013972,1749397856796,-4351.89,0.00021095,2]
[365013973,1749397856808,-1826.21,0.00021095,2]
[365013974,1749397856819,-1816.92,0.00021095,2]
[365013975,1749397856829,-1497.41,0.00021095,2]
[365013976,1749397856839,-440.0,0.00021095,2]
[365013977,1749397856849,-440.0,0.00021095,2]
[365013978,1749397856861,-440.0,0.00021095,2]
[365013979,1749397856870,-2391.39,0.00021095,2]
[365013980,1749397856880,-1136.2,0.00021095,2]
[365013981,1749397856891,-378.44,0.00021095,2]
[365013982,1749397856901,-3847.83,0.00021095,2]
[365013983,1749397856911,-440.0,0.00021095,2]
[365013984,1749397856921,-440.0,0.00021095,2]
[365013985,1749397856931,-500.12,0.00021095,2]
[365013986,1749397856940,-1497.71,0.00021095,2]
[365013987,1749397856949,-440.0,0.00021095,2]
[365013988,1749397856959,-2304.47,0.00021095,2]
[365013989,1749397856968,-440.0,0.00021095,2]
[365013990,1749397856980,-440.0,0.00021095,2]
[365013991,1749397856990,-953.88,0.00021095,2]
[365013992,1749397857000,-987.13,0.00021095,2]
[365013993,1749397857010,-665.3,0.00021095,2]
[365013994,1749397857020,-440.0,0.00021095,2]
[365013995,1749397857030,-440.0,0.00021095,2]
[365013996,1749397857040,-440.0,0.00021095,2]
[365013997,1749397857049,-504.15916561,0.00021282,2]
[365013998,1749397857060,-500.0,0.00021282,2]
[365013999,1749397857070,-500.0,0.00021282,2]
[365014000,1749397857082,-500.0,0.00021282,2]
[365014001,1749397857091,-500.0,0.00021282,2]
[365014002,1749397857101,-500.0,0.00021282,2]
[365014003,1749397857112,-500.0,0.00021282,2]
[365014004,1749397857121,-600.0,0.00021282,2]
[365014005,1749397857131,-500.0,0.00021282,2]
[365014006,1749397857141,-500.0,0.00021282,2]
[365014007,1749397857150,-500.0,0.00021282,2]
[365014008,1749397857160,-201.4,0.00021317,30]
[365014009,1749397857170,-500.0,0.00021344,2]
[365014010,1749397857180,-500.0,0.00021344,2]
[365014011,1749397857190,-500.0,0.00021347,2]
[365014012,1749397857199,-500.0,0.00021347,2]
[365014013,1749397857210,-440.0,0.00021369,2]
[365014014,1749397857221,-440.0,0.00021369,2]
[365014015,1749397857231,-440.0,0.00021369,2]
[365014016,1749397857242,-440.0,0.00021369,2]
[365014017,1749397857253,-440.0,0.00021369,2]
[365014018,1749397857263,-440.0,0.00021369,2]
[365014019,1749397857272,-440.0,0.00021369,2]
[365014020,1749397857283,-440.0,0.00021369,2]
[365014021,1749397857294,-440.0,0.00021369,2]
[365014022,1749397857303,-440.0,0.00021369,2]
[365014023,1749397857315,-440.0,0.00021369,2]
[365014024,1749397857326,-440.0,0.00021369,2]
[365014025,1749397857337,-1046.62,0.00021369,2]
[365014026,1749397857347,-440.0,0.00021369,2]
[365014027,1749397857357,-673.94,0.00021369,2]
[365014028,1749397857366,-440.0,0.00021369,2]
[365014029,1749397857376,-446.16,0.00021369,2]
[365014030,1749397857387,-440.0,0.00021369,2]
[365014031,1749397857398,-440.0,0.00021369,2]
[365014032,1749397857408,-440.0,0.00021369,2]
[365014033,1749397857419,-440.0,0.00021369,2]
[365014034,1749397857428,-440.0,0.00021369,2]
[365014035,1749397857438,-440.0,0.00021369,2]
[365014036,1749397857448,-611.96,0.00021369,2]
[365014037,1749397857458,-554.03,0.00021369,2]
[365014038,1749397857468,-2019.15,0.00021369,2]
[365014039,1749397857591,-440.0,0.00021369,2]
[365014040,1749397857602,-440.0,0.00021369,2]
[365014041,1749397857614,-501.4130808,0.00021369,2]
[365014042,1749397857626,-451.11,0.00021369,2]
[365014043,1749397857636,-440.0,0.00021369,2]
[365014044,1749397857646,-972.8,0.00021369,2]
[365014045,1749397857656,-440.0,0.00021369,2]
[365014046,1749397857668,-440.0,0.00021369,2]
[365014047,1749397857681,-440.0,0.00021369,2]
[365014048,1749397857692,-1383.94,0.00021369,2]
[365014049,1749397857703,-440.0,0.00021369,2]
[365014050,1749397857715,-440.0,0.00021369,2]
[365014051,1749397857725,-440.0,0.00021369,2]
[365014052,1749397857735,-440.0,0.00021369,2]
[365014053,1749397857746,-440.0,0.00021369,2]
[365014054,1749397857756,-440.0,0.00021369,2]
[365014055,1749397857766,-4351.89,0.00021369,2]
[365014056,1749397857776,-1826.21,0.00021369,2]
[365014057,1749397857786,-1816.92,0.00021369,2]
[365014058,1749397857796,-1497.41,0.00021369,2]
[365014059,1749397857805,-440.0,0.00021369,2]
[365014060,1749397857816,-440.0,0.00021369,2]
[365014061,1749397857827,-440.0,0.00021369,2]
[365014062,1749397857838,-2391.39,0.00021369,2]
[365014063,1749397857848,-1136.2,0.00021369,2]
[365014064,1749397857859,-3847.83,0.00021369,2]
[365014065,1749397857869,-440.0,0.00021369,2]
[365014066,1749397857881,-440.0,0.00021369,2]
[365014067,1749397857890,-500.12,0.00021369,2]
[365014068,1749397857899,-1497.71,0.00021369,2]
[365014069,1749397857910,-440.0,0.00021369,2]
[365014070,1749397857920,-2304.47,0.00021369,2]
[365014071,1749397857929,-440.0,0.00021369,2]
[365014072,1749397857939,-440.0,0.00021369,2]
[365014073,1749397857949,-953.88,0.00021369,2]
[365014074,1749397857959,-987.13,0.00021369,2]
[365014075,1749397857969,-665.3,0.00021369,2]
[365014076,1749397857982,-440.0,0.00021369,2]
[365014077,1749397857992,-440.0,0.00021369,2]
[365014078,1749397858005,-4000.0,0.00021378,4]
[365014079,1749397858014,-2000.0,0.00021398,2]
[365014080,1749397858025,-500.0,0.00021636,2]
[365014081,1749397858034,-500.0,0.00021636,2]
[365014082,1749397858044,-500.0,0.00021636,2]
[365014083,1749397858055,-500.0,0.00021636,2]
[365014084,1749397858065,-205.49080572,0.00021636,2]
[365014085,1749397858074,-500.0,0.00021636,2]
[365014086,1749397858084,-500.0,0.00021636,2]
[365014087,1749397858094,-500.0,0.00021636,2]
[365014088,1749397858103,-500.0,0.00021636,2]
[365014089,1749397858113,-440.0,0.00021643,2]
[365014090,1749397858123,-531.23865273,0.00021643,2]
[365014091,1749397858133,-440.0,0.00021643,2]
[365014092,1749397858143,-440.0,0.00021643,2]
[365014093,1749397858153,-440.0,0.00021643,2]
[365014094,1749397858162,-440.0,0.00021643,2]
[365014095,1749397858172,-440.0,0.00021643,2]
[365014096,1749397858181,-440.0,0.00021643,2]
[365014097,1749397858191,-440.0,0.00021643,2]
[365014098,1749397858201,-440.0,0.00021643,2]
[365014099,1749397858212,-440.0,0.00021643,2]
[365014100,1749397858224,-440.0,0.00021643,2]
[365014101,1749397858235,-1046.62,0.00021643,2]
[365014102,1749397858245,-440.0,0.00021643,2]
[365014103,1749397858255,-673.94,0.00021643,2]
[365014104,1749397858264,-440.0,0.00021643,2]
[365014105,1749397858274,-440.0,0.00021643,2]
[365014106,1749397858283,-440.0,0.00021643,2]
[365014107,1749397858293,-440.0,0.00021643,2]
[365014108,1749397858303,-440.0,0.00021643,2]
[365014109,1749397858314,-440.0,0.00021643,2]
[365014110,1749397858323,-440.0,0.00021643,2]
[365014111,1749397858334,-611.96,0.00021643,2]
[365014112,1749397858344,-554.03,0.00021643,2]
[365014113,1749397858353,-2019.15,0.00021643,2]
[365014114,1749397858364,-440.0,0.00021643,2]
[365014115,1749397858374,-440.0,0.00021643,2]
[365014116,1749397858385,-451.11,0.00021643,2]
[365014117,1749397858395,-440.0,0.00021643,2]
[365014118,1749397858406,-972.8,0.00021643,2]
[365014119,1749397858417,-440.0,0.00021643,2]
[365014120,1749397858427,-440.0,0.00021643,2]
[365014121,1749397858437,-440.0,0.00021643,2]
[365014122,1749397858447,-1383.94,0.00021643,2]
[365014123,1749397858457,-440.0,0.00021643,2]
[365014124,1749397858467,-440.0,0.00021643,2]
[365014125,1749397858477,-440.0,0.00021643,2]
[365014126,1749397858487,-440.0,0.00021643,2]
[365014127,1749397858496,-440.0,0.00021643,2]
[365014128,1749397858507,-440.0,0.00021643,2]
[365014129,1749397858517,-4351.89,0.00021643,2]
[365014130,1749397858527,-1826.21,0.00021643,2]
[365014131,1749397858536,-1816.92,0.00021643,2]
[365014132,1749397858547,-1497.41,0.00021643,2]
[365014133,1749397858559,-440.0,0.00021643,2]
[365014134,1749397858569,-440.0,0.00021643,2]
[365014135,1749397858580,-440.0,0.00021643,2]
[365014136,1749397858590,-2391.39,0.00021643,2]
[365014137,1749397858601,-1136.2,0.00021643,2]
[365014138,1749397858611,-3847.83,0.00021643,2]
[365014139,1749397858621,-526.18812099,0.00021643,2]
[365014140,1749397858633,-440.0,0.00021643,2]
[365014141,1749397858643,-500.12,0.00021643,2]
[365014142,1749397858654,-1497.71,0.00021643,2]
[365014143,1749397858665,-440.0,0.00021643,2]
[365014144,1749397858675,-2304.47,0.00021643,2]
[365014145,1749397858685,-440.0,0.00021643,2]
[365014146,1749397858695,-440.0,0.00021643,2]
[365014147,1749397858705,-953.88,0.00021643,2]
[365014148,1749397858715,-987.13,0.00021643,2]
[365014149,1749397858726,-665.3,0.00021643,2]
[365014150,1749397858737,-440.0,0.00021643,2]
[365014151,1749397858747,-440.0,0.00021643,2]
[365014152,1749397858758,-939.89,0.00021789,2]
[365014153,1749397858768,-167.2222613,0.00021817,2]
[365014154,1749397858778,-471.387878,0.0002183,2]
[365014155,1749397858788,-1000.0,0.00021917,2]
[365014156,1749397858798,-440.0,0.00021917,2]
[365014157,1749397858808,-440.0,0.00021917,2]
[365014158,1749397858819,-440.0,0.00021917,2]
[365014159,1749397858829,-440.0,0.00021917,2]
[365014160,1749397858839,-440.0,0.00021917,2]
[365014161,1749397858849,-440.0,0.00021917,2]
[365014162,1749397858859,-440.0,0.00021917,2]
[365014163,1749397858869,-324.48293153,0.00021917,2]
[365014164,1749397858880,-440.0,0.00021917,2]
[365014165,1749397858891,-440.0,0.00021917,2]
[365014166,1749397858901,-440.0,0.00021917,2]
[365014167,1749397858911,-1046.62,0.00021917,2]
[365014168,1749397858921,-440.0,0.00021917,2]
[365014169,1749397858931,-673.94,0.00021917,2]
[365014170,1749397858941,-440.0,0.00021917,2]
[365014171,1749397858951,-440.0,0.00021917,2]
[365014172,1749397858961,-440.0,0.00021917,2]
[365014173,1749397858972,-440.0,0.00021917,2]
[365014174,1749397858988,-440.0,0.00021917,2]
[365014175,1749397858999,-440.0,0.00021917,2]
[365014176,1749397859009,-458.26,0.00021917,2]
[365014177,1749397859021,-611.96,0.00021917,2]
[365014178,1749397859032,-554.03,0.00021917,2]
[365014179,1749397859043,-2019.15,0.00021917,2]
[365014180,1749397859054,-330.0,0.00021917,2]
[365014181,1749397859065,-440.0,0.00021917,2]
[365014182,1749397859075,-451.11,0.00021917,2]
[365014183,1749397859086,-440.0,0.00021917,2]
[365014184,1749397859096,-972.8,0.00021917,2]
[365014185,1749397859107,-440.0,0.00021917,2]
[365014186,1749397859118,-440.0,0.00021917,2]
[365014187,1749397859128,-440.0,0.00021917,2]
[365014188,1749397859139,-1383.94,0.00021917,2]
[365014189,1749397859149,-440.0,0.00021917,2]
[365014190,1749397859159,-440.0,0.00021917,2]
[365014191,1749397859169,-440.0,0.00021917,2]
[365014192,1749397859179,-440.0,0.00021917,2]
[365014193,1749397859190,-440.0,0.00021917,2]
[365014194,1749397859200,-440.0,0.00021917,2]
[365014195,1749397859211,-4351.89,0.00021917,2]
[365014196,1749397859221,-1826.21,0.00021917,2]